[Event "Israel Youth-ch U16 2025"]
[Site "Rishon Le Zion"]
[Date "2025.04.04"]
[Round "1.1"]
[White "Shefer, Uri"]
[Black "Friedlich, Eyal"]
[Result "1-0"]
[Annotator "ChessBase"]
[ECO "E71"]
[WhiteElo "2265"]
[BlackElo "1952"]
[PlyCount "85"]
[EventDate "2025.04.03"]
[EventType "swiss"]
[EventCountry "ISR"]
[SourceTitle "playchess.com"]
[Source "ChessBase"]
[SourceQuality "1"]
[TimeControl "5400+30"]

1. d4 {[%emt 0:00:01]} Nf6 {[%emt 0:00:07]} 2. c4 {[%emt 0:00:02]} g6 {[%emt 0:00:09]} 3. Nc3 {[%emt 0:00:06]} Bg7 {[%emt 0:00:07]} 4. e4 {[%emt 0:00:02]} d6 {[%emt 0:00:09]} 5. h3 {[%emt 0:00:38]} O-O {[%emt 0:00:23]} 6. Be3 {[%emt 0:00:24]} c5 {[%emt 0:06:48]} 7. dxc5 {[%emt 0:06:29]} Qa5 {[%emt 0:10:39]} 8. Bd2 {[%emt 0:03:54]} Qxc5 {[%emt 0:03:54]} 9. Nf3 {[%emt 0:01:02]} a6 {[%emt 0:06:26]} 10. b4 {[%emt 0:12:57]} Qc7 {[%emt 0:04:22]} 11. Bd3 {[%emt 0:11:59]} Nc6 {[%emt 0:08:13]} 12. a3 {[%emt 0:01:37]} Nd7 {[%emt 0:05:09]} 13. Rc1 {[%emt 0:02:26]} e6 {[%emt 0:01:02]} 14. Be2 {[%emt 0:08:39]} Nde5 {[%emt 0:01:47]} 15. Be3 {[%emt 0:06:14]} Nxf3+ {[%emt 0:03:12]} 16. gxf3 {[%emt 0:00:40]} Bd7 {[%emt 0:11:25]} 17. h4 {[%emt 0:06:49]} h5 {[%emt 0:00:29]} 18. Na4 {[%emt 0:01:30]} Ne7 {[%emt 0:09:42]} 19. Nb6 {[%emt 0:05:42]} Rad8 {[%emt 0:00:17]} 20. a4 {[%emt 0:03:37]} Nc6 {[%emt 0:04:05]} 21. Qd2 {[%emt 0:01:22]} Qb8 {[%emt 0:03:38]} 22. Kf1 {[%emt 0:05:02]} Ne5 {[%emt 0:01:27]} 23. Rg1 {[%emt 0:00:59]} d5 {[%emt 0:04:04]} 24. cxd5 {[%emt 0:03:52]} exd5 {[%emt 0:00:10]} 25. exd5 {[%emt 0:02:30]} Bh3+ {[%emt 0:01:11]} 26. Ke1 {[%emt 0:00:04]} Nd7 {[%emt 0:00:31]} 27. Rg3 {[%emt 0:01:19]} Bf5 {[%emt 0:00:57]} 28. Nc4 {[%emt 0:02:48]} Ne5 {[%emt 0:05:03]} 29. Kf1 {[%emt 0:01:58]} Be6 {[%emt 0:02:49]} 30. Nb6 {[%emt 0:00:49]} Bf5 {[%emt 0:00:38]} 31. b5 {[%emt 0:01:16]} axb5 {[%emt 0:00:55]} 32. Bxb5 {[%emt 0:00:39]} Nd7 {[%emt 0:00:56]} 33. Bxd7 {[%emt 0:01:36]} Bxd7 {[%emt 0:00:08]} 34. Bg5 {[%emt 0:00:09]} f6 {[%emt 0:01:15]} 35. Bf4 {[%emt 0:00:09]} Qa7 {[%emt 0:00:16]} 36. Bc7 {[%emt 0:00:23]} Kh7 {[%emt 0:01:20]} 37. Bxd8 {[%emt 0:00:40]} Rxd8 {[%emt 0:00:05]} 38. Nxd7 {[%emt 0:00:22]} Rxd7 {[%emt 0:00:31]} 39. Qd3 {[%emt 0:00:34]} f5 {[%emt 0:00:04]} 40. Qb5 {[%emt 0:00:38]} Rd6 {[%emt 0:00:40]} 41. Rc7 {[%emt 0:00:45]} Qd4 {[%emt 0:00:46]} 42. Qxb7 {[%emt 0:00:25]} Rxd5 {[%emt 0:00:09]} 43. Rxg7+ {[%emt 0:00:12]} 1-0

[Event "Israel Youth-ch U16 2025"]
[Site "Rishon Le Zion"]
[Date "2025.04.04"]
[Round "1.2"]
[White "Ofir, Nevo"]
[Black "Ribstein, Orel"]
[Result "1-0"]
[Annotator "ChessBase"]
[ECO "B23"]
[WhiteElo "1813"]
[BlackElo "2192"]
[PlyCount "85"]
[EventDate "2025.04.03"]
[EventType "swiss"]
[EventCountry "ISR"]
[SourceTitle "playchess.com"]
[Source "ChessBase"]
[SourceQuality "1"]
[TimeControl "5400+30"]

1. e4 {[%emt 0:00:04]} c5 {[%emt 0:00:10]} 2. Nc3 {[%emt 0:00:16]} a6 {[%emt 0:00:10]} 3. a4 {[%emt 0:00:08]} e6 {[%emt 0:00:09]} 4. g3 {[%emt 0:00:07]} Nc6 {[%emt 0:00:05]} 5. Bg2 {[%emt 0:00:17]} g6 {[%emt 0:00:02]} 6. f4 {[%emt 0:00:19]} Bg7 {[%emt 0:00:08]} 7. Nf3 {[%emt 0:00:17]} Nge7 {[%emt 0:00:09]} 8. d3 {[%emt 0:00:12]} O-O {[%emt 0:00:16]} 9. O-O {[%emt 0:01:08]} b6 {[%emt 0:00:07]} 10. Qe2 {[%emt 0:00:44]} Bb7 {[%emt 0:01:06]} 11. Nd1 {[%emt 0:02:14]} Nd4 {[%emt 0:09:48]} 12. Nxd4 {[%emt 0:01:34]} cxd4 {[%emt 0:03:43]} 13. b3 {[%emt 0:03:10]} d5 {[%emt 0:09:44]} 14. e5 {[%emt 0:04:07]} Nc6 {[%emt 0:14:45]} 15. Ba3 {[%emt 0:03:43]} Re8 {[%emt 0:00:01]} 16. Nf2 {[%emt 0:01:22]} b5 {[%emt 0:08:11]} 17. axb5 {[%emt 0:05:18]} axb5 {[%emt 0:00:02]} 18. Bc5 {[%emt 0:03:36]} Rxa1 {[%emt 0:11:19]} 19. Rxa1 {[%emt 0:00:09]} f6 {[%emt 0:00:28]} 20. exf6 {[%emt 1:11:45]} Bxf6 {[%emt 0:09:56]} 21. Re1 {[%emt 0:00:00]} Bg7 {[%emt 0:06:21]} 22. Nh3 {[%emt 0:00:00]} e5 {[%emt 0:10:47]} 23. Qf2 {[%emt 0:00:00]} h6 {[%emt 0:11:25]} 24. fxe5 {[%emt 0:00:00]} Nxe5 {[%emt 0:00:16]} 25. Rf1 {[%emt 0:00:00]} Qd7 {[%emt 0:01:06]} 26. Nf4 {[%emt 0:00:00]} Kh7 {[%emt 0:01:50]} 27. Bh3 {[%emt 0:00:00]} Qc6 {[%emt 0:00:25]} 28. Bxd4 {[%emt 0:00:00]} Nf3+ {[%emt 0:01:28]} 29. Qxf3 {[%emt 0:00:00]} Bxd4+ {[%emt 0:00:01]} 30. Kh1 {[%emt 0:00:00]} Rf8 {[%emt 0:00:27]} 31. Qe2 {[%emt 0:00:00]} Bg7 {[%emt 0:00:01]} 32. Bg2 {[%emt 0:00:00]} Qd6 {[%emt 0:01:17]} 33. Re1 {[%emt 0:00:00]} Rf7 {[%emt 0:00:35]} 34. Qe8 {[%emt 0:00:00]} Rd7 {[%emt 0:00:31]} 35. Re6 {[%emt 0:00:00]} Qf8 {[%emt 0:00:39]} 36. Qxg6+ {[%emt 0:00:00]} Kg8 {[%emt 0:00:07]} 37. Re8 {[%emt 0:00:00]} Re7 {[%emt 0:00:12]} 38. Rxf8+ {[%emt 0:00:00]} Kxf8 {[%emt 0:00:02]} 39. Ne6+ {[%emt 0:00:00]} Kg8 {[%emt 0:00:01]} 40. Kg1 {[%emt 0:00:00]} b4 {[%emt 0:01:00]} 41. Nxg7 {[%emt 0:00:00]} Rxg7 {[%emt 0:00:06]} 42. Qe8+ {[%emt 0:00:00]} Kh7 {[%emt 0:00:03]} 43. Qe6 {[%emt 0:00:00]} 1-0

[Event "Israel Youth-ch U16 2025"]
[Site "Rishon Le Zion"]
[Date "2025.04.04"]
[Round "1.3"]
[White "Azoulay, Yehonatan"]
[Black "Pearl, Oliver"]
[Result "1-0"]
[Annotator "ChessBase"]
[ECO "B06"]
[WhiteElo "2148"]
[BlackElo "1805"]
[PlyCount "109"]
[EventDate "2025.04.03"]
[EventType "swiss"]
[EventCountry "ISR"]
[SourceTitle "playchess.com"]
[Source "ChessBase"]
[SourceQuality "1"]
[TimeControl "5400+30"]

1. e4 {[%emt 0:00:02]} c5 {[%emt 0:00:05]} 2. c3 {[%emt 0:00:13]} g6 {[%emt 0:00:12]} 3. Nf3 {[%emt 0:00:22]} d5 {[%emt 0:03:36]} 4. exd5 {[%emt 0:00:10]} Qxd5 {[%emt 0:00:08]} 5. d4 {[%emt 0:00:04]} Bg7 {[%emt 0:02:59]} 6. Be3 {[%emt 0:00:10]} cxd4 {[%emt 0:01:41]} 7. cxd4 {[%emt 0:00:08]} Nf6 {[%emt 0:02:45]} 8. Nc3 {[%emt 0:00:06]} Qa5 {[%emt 0:01:31]} 9. Bc4 {[%emt 0:00:57]} O-O {[%emt 0:02:23]} 10. O-O {[%emt 0:05:20]} e6 {[%emt 0:09:44]} 11. Qe2 {[%emt 0:11:29]} Nc6 {[%emt 0:07:38]} 12. Rac1 {[%emt 0:00:27]} Nb4 {[%emt 0:07:17]} 13. Bb3 {[%emt 0:01:13]} Qd8 {[%emt 0:15:23]} 14. Bg5 {[%emt 0:02:30]} h6 {[%emt 0:03:39]} 15. Bxf6 {[%emt 0:04:47]} Bxf6 {[%emt 0:01:00]} 16. Qe4 {[%emt 0:00:05]} Bd7 {[%emt 0:03:24]} 17. Ne5 {[%emt 0:04:28]} Bc6 {[%emt 0:05:12]} 18. Nxc6 {[%emt 0:00:22]} bxc6 {[%emt 0:03:20]} 19. Rfd1 {[%emt 0:00:52]} Qd6 {[%emt 0:03:48]} 20. Qf3 {[%emt 0:09:23]} Bg5 {[%emt 0:06:11]} 21. Ne4 {[%emt 0:00:22]} Qf4 {[%emt 0:00:13]} 22. Nxg5 {[%emt 0:00:19]} hxg5 {[%emt 0:00:09]} 23. Qxf4 {[%emt 0:02:44]} gxf4 {[%emt 0:00:05]} 24. a3 {[%emt 0:02:34]} Nd5 {[%emt 0:00:08]} 25. Rxc6 {[%emt 0:00:26]} Rfb8 {[%emt 0:06:53]} 26. Bxd5 {[%emt 0:00:53]} exd5 {[%emt 0:00:12]} 27. Rc2 {[%emt 0:07:42]} Rb3 {[%emt 0:00:31]} 28. Kf1 {[%emt 0:01:33]} Kg7 {[%emt 0:03:30]} 29. f3 {[%emt 0:14:59]} Rab8 {[%emt 0:01:38]} 30. Rdd2 {[%emt 0:00:10]} g5 {[%emt 0:01:43]} 31. Kf2 {[%emt 0:01:22]} Kg6 {[%emt 0:01:01]} 32. h3 {[%emt 0:02:09]} a5 {[%emt 0:01:17]} 33. Ke2 {[%emt 0:03:13]} R8b6 {[%emt 0:01:12]} 34. Kd1 {[%emt 0:00:45]} Kh5 {[%emt 0:04:34]} 35. Kc1 {[%emt 0:00:18]} Kh4 {[%emt 0:01:21]} 36. Rc5 {[%emt 0:00:37]} R6b5 {[%emt 0:00:26]} 37. a4 {[%emt 0:01:33]} R5b4 {[%emt 0:01:34]} 38. Rxa5 {[%emt 0:00:12]} Rc4+ {[%emt 0:00:06]} 39. Kb1 {[%emt 0:02:37]} Re3 {[%emt 0:00:50]} 40. Rxd5 {[%emt 0:03:22]} Rxa4 {[%emt 0:00:05]} 41. Rc5 {[%emt 0:00:49]} Re1+ {[%emt 0:01:02]} 42. Kc2 {[%emt 0:00:07]} Raa1 {[%emt 0:00:32]} 43. Kb3 {[%emt 0:01:06]} f6 {[%emt 0:00:30]} 44. d5 {[%emt 0:01:13]} Re5 {[%emt 0:00:19]} 45. Kb4 {[%emt 0:00:48]} Kg3 {[%emt 0:00:39]} 46. d6 {[%emt 0:00:34]} Re8 {[%emt 0:00:32]} 47. d7 {[%emt 0:00:35]} Rb8+ {[%emt 0:00:01]} 48. Kc4 {[%emt 0:02:28]} Rc1+ {[%emt 0:00:34]} 49. Kd5 {[%emt 0:00:28]} Rd8 {[%emt 0:00:37]} 50. Kc6 {[%emt 0:00:09]} Ra1 {[%emt 0:00:33]} 51. Kc7 {[%emt 0:00:14]} Rda8 {[%emt 0:00:41]} 52. d8=Q {[%emt 0:00:34]} R1a7+ {[%emt 0:00:14]} 53. Kb6 {[%emt 0:00:08]} Ra6+ {[%emt 0:00:41]} 54. Kb5 {[%emt 0:00:05]} Rxd8 {[%emt 0:00:19]} 55. Rxd8 {[%emt 0:00:06]} 1-0

[Event "Israel Youth-ch U16 2025"]
[Site "Rishon Le Zion"]
[Date "2025.04.04"]
[Round "1.4"]
[White "Qasem, Muhamad Mody"]
[Black "Magen, Ofek"]
[Result "1-0"]
[Annotator "ChessBase"]
[ECO "B75"]
[WhiteElo "1827"]
[BlackElo "2115"]
[PlyCount "89"]
[EventDate "2025.04.03"]
[EventType "swiss"]
[EventCountry "ISR"]
[SourceTitle "playchess.com"]
[Source "ChessBase"]
[SourceQuality "1"]
[TimeControl "5400+30"]

1. e4 {[%emt 0:00:05]} c5 {[%emt 0:00:11]} 2. Nc3 {[%emt 0:00:05]} d6 {[%emt 0:00:13]} 3. Nf3 {[%emt 0:00:56]} Nc6 {[%emt 0:00:34]} 4. d4 {[%emt 0:00:29]} cxd4 {[%emt 0:00:11]} 5. Nxd4 {[%emt 0:00:07]} Bd7 {[%emt 0:00:46]} 6. Be3 {[%emt 0:01:19]} Nf6 {[%emt 0:03:23]} 7. f3 {[%emt 0:02:31]} g6 {[%emt 0:09:36]} 8. Qd2 {[%emt 0:03:42]} Bg7 {[%emt 0:01:40]} 9. O-O-O {[%emt 0:04:49]} h5 {[%emt 0:18:39]} 10. h4 {[%emt 0:08:28]} Rc8 {[%emt 0:05:25]} 11. Kb1 {[%emt 0:03:30]} Ne5 {[%emt 0:13:15]} 12. f4 {[%emt 0:09:43]} Neg4 {[%emt 0:03:43]} 13. Bg1 {[%emt 0:06:03]} O-O {[%emt 0:01:15]} 14. Bd3 {[%emt 0:16:22]} a6 {[%emt 0:07:16]} 15. Nf3 {[%emt 0:04:23]} e6 {[%emt 0:10:05]} 16. e5 {[%emt 0:06:58]} dxe5 {[%emt 0:00:07]} 17. fxe5 {[%emt 0:00:16]} Nd5 {[%emt 0:00:09]} 18. Nxd5 {[%emt 0:00:37]} exd5 {[%emt 0:00:02]} 19. Bxg6 {[%emt 0:02:16]} fxg6 {[%emt 0:02:34]} 20. Qxd5+ {[%emt 0:00:07]} Kh8 {[%emt 0:00:02]} 21. Qxd7 {[%emt 0:03:38]} Nxe5 {[%emt 0:06:35]} 22. Nxe5 {[%emt 0:03:23]} Bxe5 {[%emt 0:00:05]} 23. Qxd8 {[%emt 0:07:25]} Rcxd8 {[%emt 0:00:05]} 24. Bb6 {[%emt 0:01:49]} Rxd1+ {[%emt 0:01:27]} 25. Rxd1 {[%emt 0:00:01]} Bf6 {[%emt 0:03:16]} 26. Rd7 {[%emt 0:04:12]} Bxh4 {[%emt 0:02:02]} 27. Bd4+ {[%emt 0:00:10]} Bf6 {[%emt 0:00:04]} 28. Rd8 {[%emt 0:00:35]} Kg7 {[%emt 0:00:18]} 29. Rxf8 {[%emt 0:00:11]} Bxd4 {[%emt 0:00:01]} 30. Rd8 {[%emt 0:00:19]} Be5 {[%emt 0:00:30]} 31. Kc1 {[%emt 0:01:01]} Kf6 {[%emt 0:00:13]} 32. b3 {[%emt 0:00:17]} Kf5 {[%emt 0:00:19]} 33. Kd2 {[%emt 0:00:16]} Kg4 {[%emt 0:01:02]} 34. Rd3 {[%emt 0:00:35]} g5 {[%emt 0:00:20]} 35. Ke2 {[%emt 0:00:10]} Kf4 {[%emt 0:00:23]} 36. c4 {[%emt 0:00:44]} b6 {[%emt 0:02:13]} 37. b4 {[%emt 0:00:37]} Kf5 {[%emt 0:00:17]} 38. c5 {[%emt 0:00:17]} bxc5 {[%emt 0:00:56]} 39. bxc5 {[%emt 0:00:04]} Ke6 {[%emt 0:00:06]} 40. Ke3 {[%emt 0:00:36]} g4 {[%emt 0:00:10]} 41. Ke4 {[%emt 0:00:26]} h4 {[%emt 0:00:03]} 42. Rd5 {[%emt 0:00:17]} Bc7 {[%emt 0:00:30]} 43. Rh5 {[%emt 0:00:30]} Bd8 {[%emt 0:00:30]} 44. Rh6+ {[%emt 0:00:30]} Kd7 {[%emt 0:00:30]} 45. Kd5 {[%emt 0:00:30]} 1-0